fUSD/lending_fUSD_20240531
["ID","MTS","AMOUNT","RATE_DAILY","PERIOD"]
[328275312,1717120236221,-500.0,0.00032876,11]
[328275313,1717120236230,-500.0,0.00032876,11]
[328275314,1717120236240,-574.79735784,0.00032876,11]
[328275315,1717120236251,-424.690423,0.00032876,11]
[328275316,1717120236260,-500.0,0.00032876,11]
[328275317,1717120236269,-527.99304291,0.00032876,11]
[328275318,1717120236278,-500.0,0.00032876,11]
[328275319,1717120236288,-522.32316234,0.00032876,11]
[328275320,1717120236298,-500.0,0.00032876,11]
[328275321,1717120236308,-500.0,0.00032876,11]
[328275322,1717120236319,-512.97039215,0.00032876,11]
[328275323,1717120236327,-531.41406426,0.00032876,11]
[328275324,1717120236337,-500.0,0.00032876,11]
[328275325,1717120236348,-513.19836706,0.00032876,11]
[328275326,1717120236358,-500.0,0.00032876,11]
[328275327,1717120236366,-500.0,0.00032876,11]
[328275328,1717120236375,-366.22746216,0.00032876,11]
[328275329,1717120236384,-500.0,0.00032876,11]
[328275330,1717120236393,-510.21544402,0.00032876,11]
[328275331,1717120236402,-500.0,0.00032876,11]
[328275332,1717120236412,-516.81871142,0.00032876,11]
[328275333,1717120236422,-500.0,0.00032876,11]
[328275334,1717120236431,-510.99123499,0.00032876,11]
[328275335,1717120236440,-500.0,0.00032876,11]
[328275336,1717120236450,-500.0,0.00032876,11]
[328275337,1717120236459,-504.854945,0.00032876,11]
[328275338,1717120236469,-500.0,0.00032876,11]
[328275339,1717120236479,-500.0,0.00032876,11]
[328275340,1717120236488,-509.24269123,0.00032876,11]
[328275341,1717120236498,-500.0,0.00032876,11]
[328275342,1717120236508,-352.27891974,0.00032876,11]
[328275343,1717120236517,-507.6365682,0.00032876,11]
[328275344,1717120236526,-221.79768768,0.00032876,11]
[328275345,1717120236536,-500.0,0.00032876,11]
[328275346,1717120236545,-516.27319231,0.00032876,11]
[328275347,1717120236554,-500.0,0.00032876,11]
[328275348,1717120236564,-512.50417146,0.00032876,11]
[328275349,1717120236573,-507.6350848,0.00032876,11]
[328275350,1717120236583,-500.0,0.00032876,11]
[328275351,1717120236592,-648.33869713,0.00032876,11]
[328275352,1717120236605,-500.0,0.00032876,11]
[328275353,1717120236614,-509.49661018,0.00032876,11]
[328275354,1717120236623,-500.0,0.00032876,11]
[328275355,1717120236633,-506.5022249,0.00032876,11]
[328275356,1717120236642,-500.0,0.00032876,11]
[328275357,1717120236651,-515.99446666,0.00032876,11]
[328275358,1717120236660,-500.0,0.00032876,11]
[328275359,1717120236669,-517.78755554,0.00032876,11]
[328275360,1717120236678,-500.0,0.00032876,11]
[328275361,1717120236689,-500.0,0.00032876,11]
[328275362,1717120236698,-500.0,0.00032876,11]
[328275363,1717120236707,-528.1845345,0.00032876,11]
[328275364,1717120236717,-500.0,0.00032876,11]
[328275365,1717120236726,-500.0,0.00032876,11]
[328275366,1717120236736,-309.50646845,0.00032876,11]
[328275367,1717120236745,-500.0,0.00032876,11]
[328275368,1717120236755,-505.97309406,0.00032876,11]
[328275369,1717120236764,-500.0,0.00032876,11]
[328275370,1717120236773,-500.0,0.00032876,11]
[328275371,1717120236783,-568.93013177,0.00032876,11]
[328275372,1717120236969,-500.0,0.00032876,11]
[328275373,1717120236979,-160.07388111,0.00032876,11]
[328275374,1717120236988,-500.0,0.00032876,11]
[328275375,1717120236997,-510.57731989,0.00032876,11]
[328275376,1717120237007,-500.0,0.00032876,11]
[328275377,1717120237016,-500.0,0.00032876,11]
[328275378,1717120237025,-500.0,0.00032876,11]
[328275379,1717120237034,-500.0,0.00032876,11]
[328275380,1717120237043,-302.11429481,0.00032876,11]
[328275381,1717120237053,-500.0,0.00032876,11]
[328275382,1717120237062,-524.94479029,0.00032876,11]
[328275383,1717120237072,-500.0,0.00032876,11]
[328275384,1717120237081,-500.0,0.00032876,11]
[328275385,1717120237091,-500.0,0.00032876,11]
[328275386,1717120237102,-500.0,0.00032876,11]
[328275387,1717120237111,-451.27090371,0.00032876,11]
[328275388,1717120237121,-500.0,0.00032876,11]
[328275389,1717120237131,-500.0,0.00032876,11]
[328275390,1717120237140,-500.0,0.00032876,11]
[328275391,1717120237150,-500.0,0.00032876,11]
[328275392,1717120237159,-500.0,0.00032876,11]
[328275393,1717120237169,-207.70032409,0.00032876,11]
[328275394,1717120237179,-500.0,0.00032876,11]
[328275395,1717120237188,-500.0,0.00032876,11]
[328275396,1717120237197,-535.05437964,0.00032876,11]
[328275397,1717120237211,-500.0,0.00032876,11]
[328275398,1717120237220,-500.0,0.00032876,11]
[328275399,1717120237230,-527.59603096,0.00032876,11]
[328275400,1717120237239,-508.59758126,0.00032876,11]
[328275401,1717120237250,-500.0,0.00032876,11]
[328275402,1717120237259,-500.0,0.00032876,11]
[328275403,1717120237268,-500.0,0.00032876,11]
[328275404,1717120237277,-500.0,0.00032876,11]
[328275405,1717120237287,-500.0,0.00032876,11]
[328275406,1717120237298,-500.0,0.00032876,11]
[328275407,1717120237308,-500.0,0.00032876,11]
[328275408,1717120237317,-515.85965794,0.00032876,11]
[328275409,1717120237327,-500.0,0.00032876,11]
[328275410,1717120237336,-500.0,0.00032876,11]
[328275411,1717120237348,-500.0,0.00032876,11]
[328275412,1717120237357,-176.41,0.00032876,11]
[328275413,1717120237367,-500.0,0.00032876,11]
[328275414,1717120237377,-500.0,0.00032876,11]
[328275415,1717120237386,-517.83868987,0.00032876,11]
[328275416,1717120237396,-500.0,0.00032876,11]
[328275417,1717120237405,-500.0,0.00032876,11]
[328275418,1717120237415,-530.07181007,0.00032876,11]
[328275419,1717120237425,-500.0,0.00032876,11]
[328275420,1717120237434,-512.43697763,0.00032876,11]
[328275421,1717120237444,-500.0,0.00032876,11]
[328275422,1717120237453,-500.0,0.00032876,11]
[328275423,1717120237463,-524.90616423,0.00032876,11]
[328275424,1717120237473,-500.0,0.00032876,11]
[328275425,1717120237482,-549.68079961,0.00032876,11]
[328275426,1717120237492,-500.0,0.00032876,11]
[328275427,1717120237502,-527.94536069,0.00032876,11]
[328275428,1717120237511,-500.0,0.00032876,11]
[328275429,1717120237521,-514.79362804,0.00032876,11]
[328275430,1717120237530,-500.0,0.00032876,11]
[328275431,1717120237540,-500.0,0.00032876,11]
[328275432,1717120237549,-500.0,0.00032876,11]
[328275433,1717120237558,-500.0,0.00032876,11]
[328275434,1717120237568,-526.83522389,0.00032876,11]
[328275435,1717120237578,-555.25237434,0.00032876,11]
[328275436,1717120237588,-500.0,0.00032876,11]
[328275437,1717120237598,-500.0,0.00032876,11]
[328275438,1717120237608,-500.0,0.00032876,11]
[328275439,1717120237618,-500.0,0.00032876,11]
[328275440,1717120237627,-518.89096195,0.00032876,11]
[328275441,1717120237637,-514.21230617,0.00032876,11]
[328275442,1717120237648,-500.0,0.00032876,11]
[328275443,1717120237658,-526.24573527,0.00032876,11]
[328275444,1717120237667,-500.0,0.00032876,11]
[328275445,1717120237677,-500.0,0.00032876,11]
[328275446,1717120237688,-521.17341954,0.00032876,11]
[328275447,1717120237697,-500.0,0.00032876,11]
[328275448,1717120237706,-515.86573613,0.00032876,11]
[328275449,1717120237716,-500.0,0.00032876,11]
[328275450,1717120237725,-339.6113011,0.00032876,11]
[328275451,1717120237734,-500.0,0.00032876,11]
[328275452,1717120237744,-0.56801495,0.00032876,11]
[328275453,1717120237797,-417.27522362,0.00032876,11]
[328275479,1717120238735,-3271.92742205,0.00032776,2]
[328275481,1717120238747,-653.55531824,0.00032776,2]
[328275511,1717120240990,-6.46930089,0.00032776,2]
[328275513,1717120240999,-558.92194741,0.00032776,2]
[328275514,1717120241203,-261.55104945,0.00032776,2]
[328275523,1717120243452,-325.48527793,0.00032776,2]
[328275533,1717120246287,-2582.64318746,0.00032776,2]
[328275534,1717120246297,-171.69339003,0.00032776,2]
[328275535,1717120246306,-91.89660057,0.00032876,11]
[328275536,1717120246315,-500.0,0.00032876,11]
[328275537,1717120246325,-500.0,0.00032876,11]
[328275538,1717120246335,-518.93668427,0.00032876,11]
[328275539,1717120246344,-500.0,0.00032876,11]
[328275540,1717120246354,-511.32785383,0.00032876,11]
[328275541,1717120246363,-457.3713268,0.00032876,11]
[328275542,1717120246504,-42.6286732,0.00032876,11]
[328275543,1717120246513,-500.0,0.00032876,11]
[328275544,1717120246523,-530.58083215,0.00032876,11]
[328275545,1717120246532,-500.0,0.00032876,11]
[328275546,1717120246541,-137.89449465,0.00032876,11]
[328275547,1717120246553,-362.10550535,0.00032876,11]
[328275548,1717120246562,-627.65878097,0.00032876,11]
[328275549,1717120246743,-525.7560236,0.00032876,11]
[328275550,1717120246755,-449.57704351,0.00032876,11]
[328275557,1717121017878,-4135.46779446,0.00015,2]
[328275558,1717121141261,-872.91214321,0.000149,2]
[328275559,1717121231112,-376.46064595,0.00014899,2]
[328275561,1717121426003,216.9,0.00031,30]
[328275563,1717121432627,-535.91598096,0.000149,2]
[328275565,1717121438306,-1031.79077583,0.000149,2]
[328275566,1717121438316,-353.57740938,0.00015,2]
[328275567,1717121438326,-1048.3532584,0.00015,2]
[328275568,1717121438335,-500.0,0.00016,2]
[328275569,1717121438345,-153.92,0.00024732,2]
[328275570,1717121438354,-1953.11988051,0.000289,2]
[328275571,1717121438365,-1589.88011949,0.000289,2]
[328275572,1717121438375,-203.631,0.00029034,2]
[328275573,1717121438384,-178.8,0.00029062,2]
[328275574,1717121438394,-424.97443921,0.00029587,2]
[328275575,1717121438403,-157.48160741,0.0002985,2]
[328275576,1717121438412,-155.84906222,0.00030157,7]
[328275577,1717121438422,-166.83499667,0.00030271,7]
[328275578,1717121438431,-155.69544732,0.00030285,7]
[328275579,1717121438440,-153.62072472,0.00030424,7]
[328275580,1717121438449,-250.0,0.00030833,2]
[328275581,1717121438458,-879.64,0.00030853,2]
[328275582,1717121438467,-767.2974446,0.00030919,4]
[328275583,1717121438477,-157.48160741,0.00031013,7]
[328275584,1717121438486,-292.19,0.00031023,2]
[328275585,1717121438495,-156.65551378,0.00031101,7]
[328275586,1717121438505,-153.80296064,0.00031132,7]
[328275587,1717121438514,-150.0,0.0003121,7]
[328275588,1717121438523,-178.8,0.00031326,2]
[328275589,1717121438533,-329.0,0.000315,8]
[328275590,1717121438542,-152.0,0.00031719,3]
[328275591,1717121438551,-886.77,0.00031927,2]
[328275592,1717121438560,-810.09,0.00031927,2]
[328275593,1717121438569,-155.69544732,0.00031931,7]
[328275594,1717121438578,-318.45713839,0.00032,120]
[328275595,1717121438587,-150.0,0.00032034,2]
[328275596,1717121438596,-155.57657282,0.00032057,7]
[328275597,1717121438605,-1078.11051716,0.0003212,2]
[328275598,1717121438615,-157.48160741,0.00032143,7]
[328275599,1717121438625,-1105.20227026,0.00032218,2]
[328275600,1717121438634,-155.69544732,0.00032225,7]
[328275601,1717121438645,-153.62072472,0.00032364,7]
[328275602,1717121438654,-1176.64085,0.0003255,2]
[328275603,1717121438663,-157.48160741,0.0003265,7]
[328275604,1717121438672,-160.09075219,0.00032654,7]
[328275605,1717121438680,-285.01,0.00032687,6]
[328275606,1717121438689,-5742.142,0.00032776,2]
[328275607,1717121438698,-2621.30136078,0.00032776,2]
[328275608,1717121438708,-324.59097574,0.00032776,2]
[328275609,1717121438717,-150.0,0.000328,6]
[328275610,1717121438726,-1016.61253,0.000328,2]
[328275611,1717121438739,-150.0,0.000328,7]
[328275612,1717121438749,-157.48160741,0.00032862,7]
[328275613,1717121438758,-533.75144405,0.00032864,2]
[328275614,1717121438769,-222.21,0.00032866,2]
[328275615,1717121438778,-1711.26906,0.00032874,3]
[328275616,1717121438788,-19476.72503253,0.00032874,4]
[328275617,1717121438797,-732.93644135,0.00032874,4]
[328275618,1717121438806,-478.25921213,0.00032874,4]
[328275619,1717121438815,-5530.20485732,0.00032874,4]
[328275620,1717121438824,-156.95864097,0.00032874,4]
[328275621,1717121438833,-155.35130163,0.00032874,4]
[328275622,1717121438843,-166.87376023,0.00032874,4]
[328275623,1717121438852,-7892.834315,0.00032875,4]
[328275624,1717121438861,-710.04551819,0.00032875,2]
[328275625,1717121438870,-155.0,0.00032876,5]
[328275626,1717121438879,-190.35954051,0.00032876,5]
[328275627,1717121438888,-3639.71445907,0.00032876,9]
[328275628,1717121438899,-500.0,0.00032876,11]
[328275629,1717121438908,-500.0,0.00032876,11]
[328275630,1717121438917,-500.0,0.00032876,11]
[328275631,1717121438926,-500.0,0.00032876,11]
[328275632,1717121438934,-500.0,0.00032876,11]
[328275633,1717121438944,-500.0,0.00032876,11]
[328275634,1717121438953,-500.0,0.00032876,11]
[328275635,1717121438962,-500.0,0.00032876,11]
[328275636,1717121438973,-500.0,0.00032876,11]
[328275637,1717121438982,-500.0,0.00032876,11]
[328275638,1717121438991,-500.0,0.00032876,11]
[328275639,1717121439000,-500.0,0.00032876,11]
[328275640,1717121439009,-500.0,0.00032876,11]
[328275641,1717121439019,-500.0,0.00032876,11]
[328275642,1717121439028,-500.0,0.00032876,11]
[328275643,1717121439037,-500.0,0.00032876,11]
[328275644,1717121439047,-500.0,0.00032876,11]
[328275645,1717121439056,-500.0,0.00032876,11]
[328275646,1717121439065,-500.0,0.00032876,11]
[328275647,1717121439074,-500.0,0.00032876,11]
[328275648,1717121439084,-500.0,0.00032876,11]
[328275649,1717121439094,-500.0,0.00032876,11]
[328275650,1717121439103,-500.0,0.00032876,11]
[328275651,1717121439113,-500.0,0.00032876,11]
[328275652,1717121439122,-500.0,0.00032876,11]
[328275653,1717121439133,-500.0,0.00032876,11]
[328275654,1717121439144,-500.0,0.00032876,11]
[328275655,1717121439153,-500.0,0.00032876,11]
[328275656,1717121439162,-500.0,0.00032876,11]
[328275657,1717121439171,-188.33598102,0.00032876,11]
[328275658,1717121439181,-500.0,0.00032876,11]
[328275659,1717121439191,-500.0,0.00032876,11]
[328275660,1717121439200,-500.0,0.00032876,11]
[328275661,1717121439209,-500.0,0.00032876,11]
[328275662,1717121439218,-500.0,0.00032876,11]
[328275663,1717121439227,-541.74450394,0.00032876,11]
[328275664,1717121439237,-500.0,0.00032876,11]
[328275665,1717121439246,-500.0,0.00032876,11]
[328275666,1717121439256,-500.0,0.00032876,11]
[328275667,1717121439265,-500.0,0.00032876,11]
[328275668,1717121439274,-500.0,0.00032876,11]
[328275669,1717121439284,-500.0,0.00032876,11]
[328275670,1717121439293,-500.0,0.00032876,11]
[328275671,1717121439302,-500.0,0.00032876,11]
[328275672,1717121439310,-500.0,0.00032876,11]
[328275673,1717121439320,-500.0,0.00032876,11]
[328275674,1717121439329,-500.0,0.00032876,11]
[328275675,1717121439338,-500.0,0.00032876,11]
[328275676,1717121439347,-500.0,0.00032876,11]
[328275677,1717121439357,-500.0,0.00032876,11]
[328275678,1717121439366,-533.59703763,0.00032876,11]
[328275679,1717121439376,-500.0,0.00032876,11]
[328275680,1717121439385,-500.0,0.00032876,11]
[328275681,1717121439397,-500.0,0.00032876,11]
[328275682,1717121439407,-535.78619795,0.00032876,11]
[328275683,1717121439416,-213.12,0.00032876,2]
[328275684,1717121439425,-500.0,0.00032876,11]
[328275685,1717121439434,-500.0,0.00032876,11]
[328275686,1717121439444,-500.0,0.00032876,11]
[328275687,1717121439453,-500.0,0.00032876,11]
[328275688,1717121439463,-500.0,0.00032876,11]
[328275689,1717121439472,-500.0,0.00032876,11]
[328275690,1717121439482,-500.0,0.00032876,11]
[328275691,1717121439492,-500.0,0.00032876,11]
[328275692,1717121439501,-500.0,0.00032876,11]
[328275693,1717121439510,-500.0,0.00032876,11]
[328275694,1717121439520,-500.0,0.00032876,11]
[328275695,1717121439529,-469.67977353,0.00032876,11]
[328275696,1717121439538,-500.0,0.00032876,11]
[328275697,1717121439548,-500.0,0.00032876,11]
[328275698,1717121439557,-500.0,0.00032876,11]
[328275699,1717121439566,-500.0,0.00032876,11]
[328275700,1717121439575,-500.0,0.00032876,11]
[328275701,1717121439585,-500.0,0.00032876,11]
[328275702,1717121439594,-500.0,0.00032876,11]
[328275703,1717121439603,-500.0,0.00032876,11]
[328275704,1717121439613,-500.0,0.00032876,11]
[328275705,1717121439623,-500.0,0.00032876,11]
[328275706,1717121439632,-500.0,0.00032876,11]
[328275707,1717121439827,-500.0,0.00032876,11]
[328275708,1717121439850,-500.0,0.00032876,11]
[328275709,1717121439859,-500.0,0.00032876,11]
[328275710,1717121439869,-500.0,0.00032876,11]
[328275711,1717121439878,-500.0,0.00032876,11]
[328275712,1717121439888,-500.0,0.00032876,11]
[328275713,1717121439903,-500.0,0.00032876,11]
[328275714,1717121439912,-500.0,0.00032876,11]
[328275715,1717121439922,-500.0,0.00032876,11]
[328275716,1717121439932,-500.0,0.00032876,11]
[328275717,1717121439942,-500.0,0.00032876,11]
[328275718,1717121439952,-500.0,0.00032876,11]
[328275719,1717121439962,-500.0,0.00032876,11]
[328275720,1717121439971,-500.0,0.00032876,11]
[328275721,1717121439981,-500.0,0.00032876,11]
[328275722,1717121439991,-500.0,0.00032876,11]
[328275723,1717121440000,-337.47003568,0.00032876,11]
[328275724,1717121440009,-500.0,0.00032876,11]
[328275725,1717121440019,-609.46704503,0.00032876,11]
[328275726,1717121440029,-500.0,0.00032876,11]
[328275727,1717121440039,-500.0,0.00032876,11]
[328275728,1717121440048,-500.0,0.00032876,11]
[328275729,1717121440057,-500.0,0.00032876,11]
[328275730,1717121440066,-500.0,0.00032876,11]
[328275731,1717121440075,-500.0,0.00032876,11]
[328275732,1717121440085,-500.0,0.00032876,11]
[328275733,1717121440094,-500.0,0.00032876,11]
[328275734,1717121440103,-500.0,0.00032876,11]
[328275735,1717121440112,-500.0,0.00032876,11]
[328275736,1717121440121,-500.0,0.00032876,11]
[328275737,1717121440130,-500.0,0.00032876,11]
[328275738,1717121440145,-500.0,0.00032876,11]
[328275739,1717121440155,-500.0,0.00032876,11]
[328275740,1717121440164,-500.0,0.00032876,11]
[328275741,1717121440174,-500.0,0.00032876,11]
[328275742,1717121440183,-500.0,0.00032876,11]
[328275743,1717121440193,-500.0,0.00032876,11]
[328275744,1717121440203,-192.35121736,0.00032876,11]
[328275745,1717121440214,-500.0,0.00032876,11]
[328275746,1717121440224,-500.0,0.00032876,11]
[328275747,1717121440233,-500.0,0.00032876,11]
[328275748,1717121440242,-500.0,0.00032876,11]
[328275749,1717121440252,-500.0,0.00032876,11]
[328275750,1717121440261,-500.0,0.00032876,11]
[328275751,1717121440271,-500.0,0.00032876,11]
[328275752,1717121440281,-500.0,0.00032876,11]
[328275753,1717121440290,-500.0,0.00032876,11]
[328275754,1717121440300,-500.0,0.00032876,11]
[328275755,1717121440309,-500.0,0.00032876,11]
[328275756,1717121440318,-500.0,0.00032876,11]
[328275757,1717121440328,-500.0,0.00032876,11]
[328275758,1717121440338,-500.0,0.00032876,11]
[328275759,1717121440347,-500.0,0.00032876,11]
[328275760,1717121440356,-500.0,0.00032876,11]
[328275761,1717121440366,-500.0,0.00032876,11]
[328275762,1717121440376,-500.0,0.00032876,11]
[328275763,1717121440385,-500.0,0.00032876,11]
[328275764,1717121440396,-500.0,0.00032876,11]
[328275765,1717121440406,-500.0,0.00032876,11]
[328275766,1717121440415,-500.0,0.00032876,11]
[328275767,1717121440424,-500.0,0.00032876,11]
[328275768,1717121440433,-500.0,0.00032876,11]
[328275769,1717121440442,-500.0,0.00032876,11]
[328275770,1717121440452,-500.0,0.00032876,11]
[328275771,1717121440462,-500.0,0.00032876,11]
[328275772,1717121440471,-573.31487225,0.00032876,11]
[328275773,1717121440480,-500.0,0.00032876,11]
[328275774,1717121440490,-498.94151593,0.00032876,11]
[328275775,1717121440499,-500.0,0.00032876,11]
[328275776,1717121440509,-500.0,0.00032876,11]
[328275777,1717121440518,-500.0,0.00032876,11]
[328275778,1717121440528,-500.0,0.00032876,11]
[328275779,1717121440538,-500.0,0.00032876,11]
[328275780,1717121440547,-500.0,0.00032876,11]
[328275781,1717121440557,-500.0,0.00032876,11]
[328275782,1717121440567,-500.0,0.00032876,11]
[328275783,1717121440576,-500.0,0.00032876,11]
[328275784,1717121440585,-500.0,0.00032876,11]
[328275785,1717121440595,-500.0,0.00032876,11]
[328275786,1717121440604,-500.0,0.00032876,11]
[328275787,1717121440614,-500.0,0.00032876,11]
[328275788,1717121440624,-500.0,0.00032876,11]
[328275789,1717121440633,-500.0,0.00032876,11]
[328275790,1717121440646,-500.0,0.00032876,11]
[328275791,1717121440655,-500.0,0.00032876,11]
[328275792,1717121440664,-500.0,0.00032876,11]
[328275793,1717121440673,-500.0,0.00032876,11]
[328275794,1717121440682,-500.0,0.00032876,11]
[328275795,1717121440692,-500.0,0.00032876,11]
[328275796,1717121440701,-500.0,0.00032876,11]
[328275797,1717121440710,-500.0,0.00032876,11]
[328275798,1717121440720,-500.0,0.00032876,11]
[328275799,1717121440730,-500.0,0.00032876,11]
[328275800,1717121440742,-500.0,0.00032876,11]
[328275801,1717121440751,-500.0,0.00032876,11]
[328275802,1717121440761,-500.0,0.00032876,11]
[328275803,1717121440770,-500.0,0.00032876,11]
[328275804,1717121440779,-500.0,0.00032876,11]
[328275805,1717121440789,-500.0,0.00032876,11]
[328275806,1717121440798,-500.0,0.00032876,11]
[328275807,1717121440807,-441.24977146,0.00032876,11]
[328275808,1717121440816,-500.0,0.00032876,11]
[328275809,1717121440825,-500.0,0.00032876,11]
[328275810,1717121440835,-500.0,0.00032876,11]
[328275811,1717121440845,-500.0,0.00032876,11]
[328275812,1717121440854,-500.0,0.00032876,11]
[328275813,1717121440863,-500.0,0.00032876,11]
[328275814,1717121440872,-500.0,0.00032876,11]
[328275815,1717121440882,-500.0,0.00032876,11]
[328275816,1717121440891,-500.0,0.00032876,11]
[328275817,1717121440901,-500.0,0.00032876,11]
[328275818,1717121440910,-500.0,0.00032876,11]
[328275819,1717121440918,-500.0,0.00032876,11]
[328275820,1717121440927,-500.0,0.00032876,11]
[328275821,1717121440936,-480.26399212,0.00032876,11]
[328275822,1717121440946,-500.0,0.00032876,11]
[328275823,1717121440955,-500.0,0.00032876,11]
[328275824,1717121440964,-500.0,0.00032876,11]
[328275825,1717121440973,-500.0,0.00032876,11]
[328275826,1717121440982,-500.0,0.00032876,11]
[328275827,1717121440991,-500.0,0.00032876,11]
[328275828,1717121441000,-500.0,0.00032876,11]
[328275829,1717121441009,-500.0,0.00032876,11]
[328275830,1717121441018,-500.0,0.00032876,11]
[328275831,1717121441028,-500.0,0.00032876,11]
[328275832,1717121441037,-500.0,0.00032876,11]
[328275833,1717121441047,-500.0,0.00032876,11]
[328275834,1717121441056,-500.0,0.00032876,11]
[328275835,1717121441065,-500.0,0.00032876,11]
[328275836,1717121441075,-378.56497685,0.00032876,11]
[328275837,1717121441084,-500.0,0.00032876,11]
[328275838,1717121441093,-500.0,0.00032876,11]
[328275839,1717121441102,-500.0,0.00032876,11]
[328275840,1717121441111,-500.0,0.00032876,11]
[328275841,1717121441120,-500.0,0.00032876,11]
[328275842,1717121441130,-500.0,0.00032876,11]
[328275843,1717121441143,-500.0,0.00032876,11]
[328275844,1717121441152,-500.0,0.00032876,11]
[328275845,1717121441161,-500.0,0.00032876,11]
[328275846,1717121441170,-500.0,0.00032876,11]
[328275847,1717121441179,-500.0,0.00032876,11]
[328275848,1717121441188,-500.0,0.00032876,11]
[328275849,1717121441198,-500.0,0.00032876,11]
[328275850,1717121441207,-500.0,0.00032876,11]
[328275851,1717121441216,-500.0,0.00032876,11]
[328275852,1717121441226,-500.0,0.00032876,11]
[328275853,1717121441235,-500.0,0.00032876,11]
[328275854,1717121441246,-500.0,0.00032876,11]
[328275855,1717121441256,-500.0,0.00032876,11]
[328275856,1717121441266,-316.35783926,0.00032876,11]
[328275857,1717121441275,-500.0,0.00032876,11]
[328275858,1717121441285,-500.0,0.00032876,11]
[328275859,1717121441294,-500.0,0.00032876,11]
[328275860,1717121441304,-500.0,0.00032876,11]
[328275861,1717121441313,-500.0,0.00032876,11]
[328275862,1717121441322,-500.0,0.00032876,11]
[328275863,1717121441332,-500.0,0.00032876,11]
[328275864,1717121441341,-500.0,0.00032876,11]
[328275865,1717121441351,-500.0,0.00032876,11]
[328275866,1717121441360,-500.0,0.00032876,11]
[328275867,1717121441370,-500.0,0.00032876,11]
[328275868,1717121441379,-500.0,0.00032876,11]
[328275869,1717121441389,-500.0,0.00032876,11]
[328275870,1717121441402,-500.0,0.00032876,11]
[328275871,1717121441411,-500.0,0.00032876,11]
[328275872,1717121441420,-170.07992653,0.00032876,11]
[328275873,1717121441429,-612.57,0.00032876,11]
[328275874,1717121441439,-522.93951573,0.00032876,11]
[328275875,1717121441448,-500.0,0.00032876,11]
[328275876,1717121441457,-500.0,0.00032876,11]
[328275877,1717121441466,-500.0,0.00032876,11]
[328275878,1717121441475,-500.0,0.00032876,11]
[328275879,1717121441484,-500.0,0.00032876,11]
[328275880,1717121441494,-500.0,0.00032876,11]
[328275881,1717121441504,-500.0,0.00032876,11]
[328275882,1717121441514,-500.0,0.00032876,11]
[328275883,1717121441524,-500.0,0.00032876,11]
[328275884,1717121441533,-500.0,0.00032876,11]
[328275885,1717121441542,-500.0,0.00032876,11]
[328275886,1717121441552,-500.0,0.00032876,11]
[328275887,1717121441562,-500.0,0.00032876,11]
[328275888,1717121441572,-350.86444111,0.00032876,11]
[328275889,1717121441581,-500.0,0.00032876,11]
[328275890,1717121441590,-500.0,0.00032876,11]
[328275891,1717121441599,-500.0,0.00032876,11]
[328275892,1717121441609,-500.0,0.00032876,11]
[328275893,1717121441618,-500.0,0.00032876,11]